[Event "Early-Titled-Tuesday-Blitz-December-26-2023"]
[Site "Chess.com"]
[Date "2023.12.26"]
[Round "1"]
[White "pirulillo"]
[Black "enestnrvrd"]
[Result "0-1"]
[WhiteElo "2264"]
[BlackElo "2614"]
[TimeControl "180+1"]
[EndTime "8:07:06 PST"]
[Termination "enestnrvrd won by resignation"]

1. e4 {[%clk 0:02:58.7]} 1... c5 {[%clk 0:02:54.6]} 2. Nf3 {[%clk 0:02:57.8]}
2... d6 {[%clk 0:02:54.3]} 3. d4 {[%clk 0:02:57.7]} 3... cxd4 {[%clk 0:02:55.1]}
4. Nxd4 {[%clk 0:02:58.3]} 4... Nf6 {[%clk 0:02:53.8]} 5. Nc3 {[%clk 0:02:58.5]}
5... a6 {[%clk 0:02:53.7]} 6. Be2 {[%clk 0:02:58.3]} 6... e5 {[%clk 0:02:51.9]}
7. Nb3 {[%clk 0:02:58.9]} 7... Be7 {[%clk 0:02:51.7]} 8. Be3 {[%clk 0:02:59.2]}
8... Be6 {[%clk 0:02:50.2]} 9. Nd5 {[%clk 0:02:58.8]} 9... Bxd5 {[%clk
0:02:46.5]} 10. exd5 {[%clk 0:02:58.2]} 10... Nbd7 {[%clk 0:02:47.2]} 11. c4
{[%clk 0:02:52.4]} 11... O-O {[%clk 0:02:44.1]} 12. O-O {[%clk 0:02:49.2]} 12...
Rc8 {[%clk 0:02:39.9]} 13. f3 {[%clk 0:02:47.2]} 13... Nh5 {[%clk 0:02:30]} 14.
Qd2 {[%clk 0:02:45.4]} 14... f5 {[%clk 0:02:27.8]} 15. Rfd1 {[%clk 0:02:39.7]}
15... Bf6 {[%clk 0:02:06.8]} 16. Na5 {[%clk 0:02:33]} 16... Rb8 {[%clk
0:01:45.8]} 17. Rac1 {[%clk 0:02:22.2]} 17... Nf4 {[%clk 0:01:44.4]} 18. Bf1
{[%clk 0:02:20.3]} 18... g5 {[%clk 0:01:40.3]} 19. b4 {[%clk 0:02:16.8]} 19...
Ng6 {[%clk 0:01:37.7]} 20. c5 {[%clk 0:02:10.5]} 20... e4 {[%clk 0:01:26]} 21.
c6 {[%clk 0:02:04.9]} 21... f4 {[%clk 0:01:25.9]} 22. Bd4 {[%clk 0:01:56.7]}
22... e3 {[%clk 0:01:24]} 23. Qb2 {[%clk 0:01:53.6]} 23... bxc6 {[%clk
0:01:21.6]} 24. Nxc6 {[%clk 0:01:49.9]} 24... Bxd4 {[%clk 0:01:19.5]} 25. Qxd4
{[%clk 0:01:48.6]} 25... Qf6 {[%clk 0:01:18.9]} 26. Nxb8 {[%clk 0:01:47.6]}
26... Rxb8 {[%clk 0:01:19]} 27. Bxa6 {[%clk 0:01:41.4]} 27... Nde5 {[%clk
0:01:09.7]} 28. Be2 {[%clk 0:01:33]} 28... h5 {[%clk 0:01:06.8]} 29. Qa7 {[%clk
0:01:27.3]} 29... Rf8 {[%clk 0:01:05.8]} 30. b5 {[%clk 0:01:24]} 30... g4 {[%clk
0:01:04.9]} 31. b6 {[%clk 0:01:21.6]} 31... Nh4 {[%clk 0:00:59.5]} 32. b7 {[%clk
0:01:17.3]} 32... gxf3 {[%clk 0:00:59.3]} 33. b8=Q {[%clk 0:01:16.8]} 33... fxe2
{[%clk 0:00:56.5]} 34. Re1 {[%clk 0:01:02.3]} 34... f3 {[%clk 0:00:55.8]} 35.
Qxf8+ {[%clk 0:00:58.5]} 35... Qxf8 {[%clk 0:00:55.1]} 36. Qxe3 {[%clk 0:00:59]}
36... fxg2 {[%clk 0:00:32.7]} 37. Qg5+ {[%clk 0:00:52.7]} 37... Neg6 {[%clk
0:00:32.7]} 38. Qxh5 {[%clk 0:00:38.6]} 38... Nf3+ {[%clk 0:00:28.5]} 39. Kf2
{[%clk 0:00:32.2]} 39... Nxe1+ {[%clk 0:00:26.5]} 40. Kxe1 {[%clk 0:00:25.5]}
40... g1=Q+ {[%clk 0:00:25.6]} 41. Kd2 {[%clk 0:00:25]} 41... Qxc1+ {[%clk
0:00:25.1]} 42. Kxc1 {[%clk 0:00:24.7]} 42... e1=Q+ {[%clk 0:00:25]} 0-1

[Event "Early-Titled-Tuesday-Blitz-December-26-2023"]
[Site "Chess.com"]
[Date "2023.12.26"]
[Round "1"]
[White "snowlord"]
[Black "Rakitic2010"]
[Result "1-0"]
[WhiteElo "2933"]
[BlackElo "2520"]
[TimeControl "180+1"]
[EndTime "8:07:09 PST"]
[Termination "snowlord won on time"]

1. Nf3 {[%clk 0:03:00.7]} 1... Nf6 {[%clk 0:02:59.7]} 2. g3 {[%clk 0:03:01]}
2... g6 {[%clk 0:02:59.9]} 3. d3 {[%clk 0:02:58.9]} 3... Bg7 {[%clk 0:03:00.8]}
4. Bg2 {[%clk 0:02:58.9]} 4... O-O {[%clk 0:03:01.1]} 5. O-O {[%clk 0:02:59.8]}
5... d5 {[%clk 0:03:00.8]} 6. Bf4 {[%clk 0:02:58.4]} 6... c6 {[%clk 0:02:52.8]}
7. c4 {[%clk 0:02:55.7]} 7... Bf5 {[%clk 0:02:43.2]} 8. Qb3 {[%clk 0:02:40.2]}
8... Nbd7 {[%clk 0:02:07.2]} 9. Qxb7 {[%clk 0:02:12.5]} 9... Nh5 {[%clk
0:02:05.8]} 10. Bc1 {[%clk 0:01:37]} 10... e5 {[%clk 0:01:30.2]} 11. Qxc6 {[%clk
0:01:11.9]} 11... e4 {[%clk 0:01:23.3]} 12. Nh4 {[%clk 0:01:11.2]} 12... Be6
{[%clk 0:01:16.4]} 13. cxd5 {[%clk 0:01:09.4]} 13... Rc8 {[%clk 0:01:15.1]} 14.
Qd6 {[%clk 0:00:55.1]} 14... Be5 {[%clk 0:01:04.4]} 15. Qa3 {[%clk 0:00:54.4]}
15... Bxd5 {[%clk 0:01:01.3]} 16. Nc3 {[%clk 0:00:45.6]} 16... Bc6 {[%clk
0:00:53.2]} 17. Nxe4 {[%clk 0:00:42.8]} 17... f5 {[%clk 0:00:40.1]} 18. Ng5
{[%clk 0:00:41.4]} 18... Bxg2 {[%clk 0:00:35.1]} 19. Kxg2 {[%clk 0:00:42.3]}
19... Qf6 {[%clk 0:00:26.8]} 20. Nhf3 {[%clk 0:00:37.3]} 20... f4 {[%clk
0:00:20.4]} 21. Qb3+ {[%clk 0:00:31.9]} 21... Kh8 {[%clk 0:00:19.7]} 22. Qe6
{[%clk 0:00:32.1]} 22... fxg3 {[%clk 0:00:15.1]} 23. Qxd7 {[%clk 0:00:23.5]}
23... Rc7 {[%clk 0:00:13.6]} 24. Qe6 {[%clk 0:00:21.1]} 24... Qg7 {[%clk
0:00:11.8]} 25. Qxe5 {[%clk 0:00:19.9]} 25... Qxe5 {[%clk 0:00:08.5]} 26. Nxe5
{[%clk 0:00:19.9]} 26... Rc2 {[%clk 0:00:04.7]} 27. hxg3 {[%clk 0:00:18.5]}
27... Rxe2 {[%clk 0:00:04.6]} 28. Be3 {[%clk 0:00:17.4]} 28... Rxb2 {[%clk
0:00:03.6]} 29. Rab1 {[%clk 0:00:16.9]} 29... Rxa2 {[%clk 0:00:03.2]} 30. Rb7
{[%clk 0:00:13.7]} 30... Nf6 {[%clk 0:00:02.5]} 31. Nef7+ {[%clk 0:00:12.1]}
31... Kg7 {[%clk 0:00:02.4]} 32. Bd4 {[%clk 0:00:11.2]} 1-0

[Event "Early-Titled-Tuesday-Blitz-December-26-2023"]
[Site "Chess.com"]
[Date "2023.12.26"]
[Round "1"]
[White "ural58"]
[Black "NovozhilovSemen"]
[Result "1-0"]
[WhiteElo "2477"]
[BlackElo "2766"]
[TimeControl "180+1"]
[EndTime "8:07:10 PST"]
[Termination "ural58 won by resignation"]

1. e4 {[%clk 0:02:57.8]} 1... c5 {[%clk 0:02:58.2]} 2. b3 {[%clk 0:02:57.3]}
2... g6 {[%clk 0:02:55.9]} 3. Bb2 {[%clk 0:02:57]} 3... Nf6 {[%clk 0:02:56]} 4.
e5 {[%clk 0:02:57.1]} 4... Nd5 {[%clk 0:02:56.2]} 5. Nc3 {[%clk 0:02:57]} 5...
Nxc3 {[%clk 0:02:54.3]} 6. Bxc3 {[%clk 0:02:56.7]} 6... Bg7 {[%clk 0:02:54.7]}
7. h4 {[%clk 0:02:56.7]} 7... h6 {[%clk 0:02:53]} 8. f4 {[%clk 0:02:55.4]} 8...
d6 {[%clk 0:02:44]} 9. h5 {[%clk 0:02:53.2]} 9... g5 {[%clk 0:02:35.1]} 10. fxg5
{[%clk 0:02:52.4]} 10... hxg5 {[%clk 0:02:29.4]} 11. e6 {[%clk 0:02:44.2]} 11...
Bxc3 {[%clk 0:02:12.4]} 12. exf7+ {[%clk 0:02:42.4]} 12... Kf8 {[%clk
0:02:10.9]} 13. dxc3 {[%clk 0:02:42]} 13... e5 {[%clk 0:02:11.6]} 14. Bc4 {[%clk
0:02:39.5]} 14... Nc6 {[%clk 0:02:09.3]} 15. Nh3 {[%clk 0:02:09.4]} 15... g4
{[%clk 0:01:16.4]} 16. Nf2 {[%clk 0:02:03.7]} 16... Ne7 {[%clk 0:01:15.7]} 17.
Nxg4 {[%clk 0:01:53.3]} 17... Bxg4 {[%clk 0:01:04.5]} 18. Qxg4 {[%clk
0:01:52.3]} 18... d5 {[%clk 0:01:05]} 19. O-O-O {[%clk 0:01:50.7]} 19... Qd6
{[%clk 0:00:59]} 20. Kb1 {[%clk 0:01:41.2]} 20... a6 {[%clk 0:00:56.1]} 21. h6
{[%clk 0:01:22.9]} 21... Kxf7 {[%clk 0:00:25]} 22. Bxd5+ {[%clk 0:01:16.2]}
22... Nxd5 {[%clk 0:00:22.5]} 23. Qf3+ {[%clk 0:01:09.4]} 23... Ke6 {[%clk
0:00:20.8]} 24. c4 {[%clk 0:01:06]} 24... Raf8 {[%clk 0:00:19.1]} 25. Qh3+
{[%clk 0:01:01.8]} 25... Rf5 {[%clk 0:00:16.2]} 26. Rxd5 {[%clk 0:01:01.2]}
26... Qf8 {[%clk 0:00:16.8]} 27. Rhd1 {[%clk 0:00:58.6]} 27... Kf6 {[%clk
0:00:11.8]} 28. Rd7 {[%clk 0:00:52.6]} 28... Kg5 {[%clk 0:00:02.6]} 29. g4
{[%clk 0:00:47.3]} 29... Rf3 {[%clk 0:00:01.2]} 30. Qh5+ {[%clk 0:00:47.3]}
30... Kf4 {[%clk 0:00:01.8]} 31. Rf7+ {[%clk 0:00:36.6]} 31... Qxf7 {[%clk
0:00:01.6]} 32. Qxf7+ {[%clk 0:00:36.6]} 32... Ke4 {[%clk 0:00:02.5]} 33. Qd5+
{[%clk 0:00:35.3]} 33... Kf4 {[%clk 0:00:02.5]} 34. g5 {[%clk 0:00:30.5]} 34...
Rg3 {[%clk 0:00:02.8]} 35. Rf1+ {[%clk 0:00:29.3]} 35... Kxg5 {[%clk 0:00:03.4]}
36. Qxe5+ {[%clk 0:00:28.6]} 36... Kh4 {[%clk 0:00:04.3]} 37. Qxh8 {[%clk
0:00:27.8]} 37... Rg1 {[%clk 0:00:03.7]} 38. Rxg1 {[%clk 0:00:26.5]} 1-0

[Event "Early-Titled-Tuesday-Blitz-December-26-2023"]
[Site "Chess.com"]
[Date "2023.12.26"]
[Round "1"]
[White "ahkashefi2800"]
[Black "stratacticos"]
[Result "1-0"]
[WhiteElo "2551"]
[BlackElo "1854"]
[TimeControl "180+1"]
[EndTime "8:07:11 PST"]
[Termination "ahkashefi2800 won on time"]

1. d4 {[%clk 0:02:55]} 1... Nf6 {[%clk 0:02:59.3]} 2. Nf3 {[%clk 0:02:50.1]}
2... g6 {[%clk 0:02:58.5]} 3. g3 {[%clk 0:02:49.7]} 3... Bg7 {[%clk 0:02:58.1]}
4. Bg2 {[%clk 0:02:49.7]} 4... O-O {[%clk 0:02:57.8]} 5. O-O {[%clk 0:02:49.8]}
5... d5 {[%clk 0:02:57]} 6. b3 {[%clk 0:02:49.5]} 6... c5 {[%clk 0:02:55.4]} 7.
Bb2 {[%clk 0:02:47.6]} 7... Ne4 {[%clk 0:02:54.4]} 8. e3 {[%clk 0:02:35.5]} 8...
Nc6 {[%clk 0:02:50.6]} 9. c3 {[%clk 0:02:32]} 9... cxd4 {[%clk 0:02:48.2]} 10.
cxd4 {[%clk 0:02:29.5]} 10... Bg4 {[%clk 0:02:47.2]} 11. Nbd2 {[%clk 0:02:25.5]}
11... Qd7 {[%clk 0:02:36.2]} 12. a3 {[%clk 0:02:17.7]} 12... Nxd2 {[%clk
0:02:29.9]} 13. Qxd2 {[%clk 0:02:16]} 13... Bh3 {[%clk 0:02:29.6]} 14. Rac1
{[%clk 0:02:13.2]} 14... Bxg2 {[%clk 0:02:28.8]} 15. Kxg2 {[%clk 0:02:12.8]}
15... Rac8 {[%clk 0:02:18.3]} 16. h4 {[%clk 0:02:08.6]} 16... Rc7 {[%clk
0:02:08]} 17. h5 {[%clk 0:01:59.9]} 17... Rfc8 {[%clk 0:01:58.1]} 18. hxg6
{[%clk 0:01:57.2]} 18... hxg6 {[%clk 0:01:56.9]} 19. Rh1 {[%clk 0:01:52.5]}
19... Qf5 {[%clk 0:01:45.7]} 20. Rc5 {[%clk 0:01:24.2]} 20... b6 {[%clk
0:01:37.4]} 21. Rc3 {[%clk 0:01:23.2]} 21... Na5 {[%clk 0:01:19.1]} 22. Rhc1
{[%clk 0:01:17.3]} 22... Rxc3 {[%clk 0:01:17.8]} 23. Rxc3 {[%clk 0:01:15.1]}
23... Rxc3 {[%clk 0:01:16.8]} 24. Qxc3 {[%clk 0:01:15.2]} 24... Qd7 {[%clk
0:00:58.4]} 25. Nd2 {[%clk 0:01:14.5]} 25... Nc6 {[%clk 0:00:52.8]} 26. b4
{[%clk 0:01:11.9]} 26... e5 {[%clk 0:00:50.5]} 27. dxe5 {[%clk 0:01:11.9]} 27...
Bxe5 {[%clk 0:00:48.9]} 28. Qb3 {[%clk 0:01:09]} 28... Bxb2 {[%clk 0:00:48.2]}
29. Qxb2 {[%clk 0:01:09]} 29... d4 {[%clk 0:00:48.3]} 30. Ne4 {[%clk 0:00:57.1]}
30... Qd5 {[%clk 0:00:43.7]} 31. f3 {[%clk 0:00:57.4]} 31... Kg7 {[%clk
0:00:38.7]} 32. b5 {[%clk 0:00:57.2]} 32... Ne5 {[%clk 0:00:35.4]} 33. Qxd4
{[%clk 0:00:55.6]} 33... Qa2+ {[%clk 0:00:33.8]} 34. Nf2 {[%clk 0:00:51.1]}
34... f6 {[%clk 0:00:28.1]} 35. a4 {[%clk 0:00:51.2]} 35... Qe2 {[%clk
0:00:21.1]} 36. Qe4 {[%clk 0:00:45.8]} 36... Kh6 {[%clk 0:00:07.7]} 37. Qa8
{[%clk 0:00:37.1]} 1-0

[Event "Early-Titled-Tuesday-Blitz-December-26-2023"]
[Site "Chess.com"]
[Date "2023.12.26"]
[Round "1"]
[White "Ergali_Suleimen"]
[Black "Angry_Twin"]
[Result "0-1"]
[WhiteElo "2523"]
[BlackElo "2960"]
[TimeControl "180+1"]
[EndTime "8:07:12 PST"]
[Termination "Angry_Twin won on time"]

1. e4 {[%clk 0:02:33.3]} 1... c5 {[%clk 0:02:57.8]} 2. Nf3 {[%clk 0:02:30.2]}
2... d6 {[%clk 0:02:58.2]} 3. d4 {[%clk 0:02:30.3]} 3... cxd4 {[%clk 0:02:59.1]}
4. Nxd4 {[%clk 0:02:31]} 4... Nf6 {[%clk 0:02:59.8]} 5. Nc3 {[%clk 0:02:31.6]}
5... a6 {[%clk 0:03:00.5]} 6. Be3 {[%clk 0:02:29.8]} 6... e5 {[%clk 0:03:00.3]}
7. Nb3 {[%clk 0:02:28.8]} 7... Be6 {[%clk 0:02:59.5]} 8. h3 {[%clk 0:02:28.8]}
8... Nbd7 {[%clk 0:02:57.7]} 9. g4 {[%clk 0:02:28]} 9... Rc8 {[%clk 0:02:56.3]}
10. Qd2 {[%clk 0:02:22]} 10... h6 {[%clk 0:02:52.5]} 11. O-O-O {[%clk
0:02:17.7]} 11... b5 {[%clk 0:02:50.1]} 12. Kb1 {[%clk 0:02:14.6]} 12... Be7
{[%clk 0:02:49.5]} 13. f4 {[%clk 0:02:12.6]} 13... Rxc3 {[%clk 0:01:51.4]} 14.
Qxc3 {[%clk 0:02:06.2]} 14... Nxe4 {[%clk 0:01:51.8]} 15. Qd3 {[%clk 0:01:40]}
15... Ng3 {[%clk 0:01:51.8]} 16. Bb6 {[%clk 0:01:19.4]} 16... Qxb6 {[%clk
0:01:38.5]} 17. Qxg3 {[%clk 0:01:18.9]} 17... O-O {[%clk 0:01:39.2]} 18. f5
{[%clk 0:01:07]} 18... Bc4 {[%clk 0:01:37.6]} 19. h4 {[%clk 0:01:05.7]} 19...
Rc8 {[%clk 0:01:00.4]} 20. g5 {[%clk 0:00:49.8]} 20... h5 {[%clk 0:01:00.5]} 21.
f6 {[%clk 0:00:48.5]} 21... Bf8 {[%clk 0:00:58]} 22. Nd2 {[%clk 0:00:36]} 22...
Be6 {[%clk 0:00:44.4]} 23. Be2 {[%clk 0:00:20.3]} 23... g6 {[%clk 0:00:42.9]}
24. Rhe1 {[%clk 0:00:16.1]} 24... d5 {[%clk 0:00:42.8]} 25. Nf3 {[%clk
0:00:15.6]} 25... Bd6 {[%clk 0:00:42.2]} 26. Qg1 {[%clk 0:00:15.4]} 26... Qc7
{[%clk 0:00:40.5]} 27. Rc1 {[%clk 0:00:15.2]} 27... d4 {[%clk 0:00:39.7]} 28.
Nd2 {[%clk 0:00:14.6]} 28... Nc5 {[%clk 0:00:39.8]} 29. Nb3 {[%clk 0:00:14]}
29... Na4 {[%clk 0:00:39]} 30. Bd3 {[%clk 0:00:09.6]} 30... Nxb2 {[%clk
0:00:39.1]} 31. Nxd4 {[%clk 0:00:05.6]} 31... exd4 {[%clk 0:00:36.8]} 32. Rxe6
{[%clk 0:00:05.4]} 32... Nxd3 {[%clk 0:00:30.6]} 33. Rxd6 {[%clk 0:00:02.6]}
33... Nxc1 {[%clk 0:00:28.6]} 34. Qxd4 {[%clk 0:00:01.9]} 34... Ne2 {[%clk
0:00:28.2]} 35. Qd2 {[%clk 0:00:01.8]} 35... Nc3+ {[%clk 0:00:28.6]} 36. Kb2
{[%clk 0:00:01.8]} 36... Ne4 {[%clk 0:00:29.1]} 37. Rd7 {[%clk 0:00:01.5]} 37...
Nxd2 {[%clk 0:00:29.2]} 0-1

[Event "Early-Titled-Tuesday-Blitz-December-26-2023"]
[Site "Chess.com"]
[Date "2023.12.26"]
[Round "1"]
[White "Kirill_Klukin"]
[Black "FunnyDuck66"]
[Result "1-0"]
[WhiteElo "2832"]
[BlackElo "2486"]
[TimeControl "180+1"]
[EndTime "8:07:16 PST"]
[Termination "Kirill_Klukin won on time"]

1. c4 {[%clk 0:03:00.2]} 1... e6 {[%clk 0:02:59.6]} 2. Nc3 {[%clk 0:02:58.3]}
2... Bb4 {[%clk 0:02:57.9]} 3. d4 {[%clk 0:02:54.1]} 3... Nf6 {[%clk 0:02:53]}
4. e3 {[%clk 0:02:53.4]} 4... c5 {[%clk 0:02:52.8]} 5. Bd2 {[%clk 0:02:45.5]}
5... O-O {[%clk 0:02:41.7]} 6. Nf3 {[%clk 0:02:45.2]} 6... cxd4 {[%clk 0:02:36]}
7. Nxd4 {[%clk 0:02:45.2]} 7... d5 {[%clk 0:02:33]} 8. a3 {[%clk 0:02:34]} 8...
Be7 {[%clk 0:02:27.1]} 9. cxd5 {[%clk 0:02:29.5]} 9... Nxd5 {[%clk 0:02:25.3]}
10. Be2 {[%clk 0:02:29.6]} 10... Nc6 {[%clk 0:02:00.7]} 11. Nxc6 {[%clk
0:02:26.2]} 11... bxc6 {[%clk 0:02:01.6]} 12. O-O {[%clk 0:02:26.4]} 12... Bf6
{[%clk 0:01:57.1]} 13. Qc2 {[%clk 0:02:24.3]} 13... Rb8 {[%clk 0:01:51.1]} 14.
Rfd1 {[%clk 0:02:13.9]} 14... Bd7 {[%clk 0:01:12.2]} 15. e4 {[%clk 0:01:51.7]}
15... Nb6 {[%clk 0:00:55.2]} 16. Bf4 {[%clk 0:01:43.6]} 16... e5 {[%clk
0:00:55.2]} 17. Be3 {[%clk 0:01:40.2]} 17... Qe7 {[%clk 0:00:52.8]} 18. b4
{[%clk 0:01:40]} 18... Rfd8 {[%clk 0:00:45]} 19. Rac1 {[%clk 0:01:36.9]} 19...
Bg5 {[%clk 0:00:36.8]} 20. Bc5 {[%clk 0:01:23.8]} 20... Qf6 {[%clk 0:00:20.5]}
21. Rb1 {[%clk 0:01:21.2]} 21... Be6 {[%clk 0:00:19.9]} 22. a4 {[%clk
0:01:08.3]} 22... Nc4 {[%clk 0:00:15.4]} 23. Bxc4 {[%clk 0:00:54.5]} 23... Bxc4
{[%clk 0:00:16.3]} 24. Bxa7 {[%clk 0:00:53.5]} 24... Ra8 {[%clk 0:00:16.8]} 25.
Bb6 {[%clk 0:00:53]} 25... Rdb8 {[%clk 0:00:15.9]} 26. a5 {[%clk 0:00:52.9]}
26... Qe6 {[%clk 0:00:07.2]} 27. Na4 {[%clk 0:00:49.7]} 27... Be7 {[%clk
0:00:07.3]} 28. Nc5 {[%clk 0:00:48.9]} 28... Bxc5 {[%clk 0:00:07.6]} 29. Bxc5
{[%clk 0:00:49.8]} 29... Bb5 {[%clk 0:00:07.7]} 30. Rd6 {[%clk 0:00:49.2]} 30...
Qg4 {[%clk 0:00:04.2]} 31. Rbd1 {[%clk 0:00:46.8]} 31... h5 {[%clk 0:00:03.7]}
32. h3 {[%clk 0:00:46.8]} 32... Qg5 {[%clk 0:00:03.7]} 33. Be3 {[%clk
0:00:41.7]} 33... Qh4 {[%clk 0:00:03.8]} 34. Kh2 {[%clk 0:00:33]} 34... Rd8
{[%clk 0:00:03.8]} 35. Qd2 {[%clk 0:00:27.7]} 35... Rxd6 {[%clk 0:00:03.4]} 36.
Qxd6 {[%clk 0:00:28.2]} 36... Re8 {[%clk 0:00:02.5]} 37. a6 {[%clk 0:00:18.8]}
37... Bxa6 {[%clk 0:00:02.1]} 38. Qxc6 {[%clk 0:00:19.2]} 1-0

[Event "Early-Titled-Tuesday-Blitz-December-26-2023"]
[Site "Chess.com"]
[Date "2023.12.26"]
[Round "1"]
[White "semchik73"]
[Black "Druid24"]
[Result "0-1"]
[WhiteElo "2384"]
[BlackElo "2693"]
[TimeControl "180+1"]
[EndTime "8:07:25 PST"]
[Termination "Druid24 won by resignation"]

1. Nf3 {[%clk 0:03:00.2]} 1... d5 {[%clk 0:02:57.9]} 2. c4 {[%clk 0:03:00.1]}
2... d4 {[%clk 0:02:57.6]} 3. e3 {[%clk 0:03:00.1]} 3... c5 {[%clk 0:02:54.3]}
4. b4 {[%clk 0:03:00.4]} 4... Nc6 {[%clk 0:02:47.9]} 5. b5 {[%clk 0:02:59]} 5...
Na5 {[%clk 0:02:45.2]} 6. exd4 {[%clk 0:02:59.1]} 6... cxd4 {[%clk 0:02:46.1]}
7. Bb2 {[%clk 0:02:59.3]} 7... d3 {[%clk 0:02:41.7]} 8. Qa4 {[%clk 0:02:52.9]}
8... Nf6 {[%clk 0:02:32]} 9. b6+ {[%clk 0:02:41.5]} 9... Nc6 {[%clk 0:02:31.8]}
10. bxa7 {[%clk 0:02:40]} 10... Rxa7 {[%clk 0:02:06.6]} 11. Qb3 {[%clk
0:02:39.6]} 11... Bf5 {[%clk 0:02:07.2]} 12. Nh4 {[%clk 0:02:20.5]} 12... Be4
{[%clk 0:01:39.7]} 13. f3 {[%clk 0:02:08.8]} 13... Nd4 {[%clk 0:01:39.8]} 14.
Bxd4 {[%clk 0:02:06.2]} 14... Qxd4 {[%clk 0:01:40.7]} 15. Nc3 {[%clk 0:01:57.1]}
15... Bc6 {[%clk 0:01:29.5]} 16. Nf5 {[%clk 0:01:54.7]} 16... Qd7 {[%clk
0:01:26.5]} 17. Ne3 {[%clk 0:01:52.9]} 17... e6 {[%clk 0:01:23.4]} 18. Nb5
{[%clk 0:01:47.6]} 18... Bxb5 {[%clk 0:01:19.9]} 19. cxb5 {[%clk 0:01:47]} 19...
Ra3 {[%clk 0:01:18.7]} 20. Qb2 {[%clk 0:01:34.6]} 20... Ra4 {[%clk 0:00:57.7]}
21. Qb3 {[%clk 0:01:23]} 21... Ra3 {[%clk 0:00:58.1]} 22. Qb2 {[%clk 0:01:23]}
22... Bc5 {[%clk 0:00:58.8]} 23. Nc4 {[%clk 0:01:21.2]} 23... Ra4 {[%clk
0:00:39]} 24. Rc1 {[%clk 0:00:56.6]} 24... O-O {[%clk 0:00:33.8]} 25. Qb3 {[%clk
0:00:43.7]} 25... Rfa8 {[%clk 0:00:29.9]} 26. Qxd3 {[%clk 0:00:42.4]} 26... Qxb5
{[%clk 0:00:28]} 27. Ne5 {[%clk 0:00:34.6]} 27... Qb6 {[%clk 0:00:20.4]} 28. Rb1
{[%clk 0:00:29.7]} 28... Qc7 {[%clk 0:00:19.3]} 29. Ng4 {[%clk 0:00:24.6]} 29...
Nxg4 {[%clk 0:00:18.3]} 30. fxg4 {[%clk 0:00:25.1]} 30... Rxa2 {[%clk
0:00:15.3]} 31. Be2 {[%clk 0:00:21]} 31... b6 {[%clk 0:00:15.1]} 32. Rc1 {[%clk
0:00:18]} 32... Rd8 {[%clk 0:00:15.4]} 33. Qb3 {[%clk 0:00:17.4]} 33... Rdxd2
{[%clk 0:00:14.2]} 34. Qf3 {[%clk 0:00:12.7]} 34... Rxe2+ {[%clk 0:00:14]} 35.
Qxe2 {[%clk 0:00:12.9]} 35... Rxe2+ {[%clk 0:00:14.8]} 36. Kxe2 {[%clk
0:00:13.6]} 36... Qe5+ {[%clk 0:00:15.5]} 37. Kd2 {[%clk 0:00:13.2]} 37... Be3+
{[%clk 0:00:15.4]} 38. Kd3 {[%clk 0:00:13.5]} 38... Bxc1 {[%clk 0:00:16.3]} 39.
Rxc1 {[%clk 0:00:13.7]} 39... Qd5+ {[%clk 0:00:16.7]} 40. Ke2 {[%clk 0:00:13.6]}
40... g6 {[%clk 0:00:17.6]} 41. Rc3 {[%clk 0:00:13.5]} 41... Qe5+ {[%clk
0:00:17.8]} 42. Re3 {[%clk 0:00:14.2]} 42... Qxe3+ {[%clk 0:00:18.1]} 43. Kxe3
{[%clk 0:00:14.2]} 43... Kg7 {[%clk 0:00:19]} 44. g5 {[%clk 0:00:14.2]} 44... h6
{[%clk 0:00:19.3]} 45. h3 {[%clk 0:00:14.3]} 45... hxg5 {[%clk 0:00:20.2]} 46.
Kd4 {[%clk 0:00:14.7]} 46... Kf6 {[%clk 0:00:21]} 0-1

[Event "Early-Titled-Tuesday-Blitz-December-26-2023"]
[Site "Chess.com"]
[Date "2023.12.26"]
[Round "1"]
[White "bazar-wokzal"]
[Black "nitpicker"]
[Result "1-0"]
[WhiteElo "2635"]
[BlackElo "2302"]
[TimeControl "180+1"]
[EndTime "8:07:25 PST"]
[Termination "bazar-wokzal won on time"]

1. e4 {[%clk 0:02:34.3]} 1... c5 {[%clk 0:02:56.7]} 2. c3 {[%clk 0:02:33.2]}
2... d5 {[%clk 0:02:56.1]} 3. exd5 {[%clk 0:02:33.1]} 3... Qxd5 {[%clk
0:02:56.3]} 4. d4 {[%clk 0:02:30.7]} 4... Nf6 {[%clk 0:02:55.8]} 5. Nf3 {[%clk
0:02:30]} 5... Nc6 {[%clk 0:02:55.4]} 6. Be3 {[%clk 0:02:28.3]} 6... Bg4 {[%clk
0:02:06.8]} 7. dxc5 {[%clk 0:02:18.8]} 7... Qxd1+ {[%clk 0:02:05.2]} 8. Kxd1
{[%clk 0:02:18.7]} 8... e6 {[%clk 0:01:59.5]} 9. Bb5 {[%clk 0:02:16.9]} 9...
O-O-O+ {[%clk 0:01:53.7]} 10. Kc1 {[%clk 0:02:14.3]} 10... Bxf3 {[%clk 0:01:45]}
11. gxf3 {[%clk 0:02:13.9]} 11... Ne5 {[%clk 0:01:45.4]} 12. Be2 {[%clk
0:02:10]} 12... Nd5 {[%clk 0:01:29.6]} 13. b4 {[%clk 0:02:09.2]} 13... a5 {[%clk
0:01:22]} 14. a3 {[%clk 0:02:06.6]} 14... Be7 {[%clk 0:01:14.3]} 15. Rd1 {[%clk
0:02:04.1]} 15... Bh4 {[%clk 0:00:50.7]} 16. Ra2 {[%clk 0:02:00.9]} 16... Kb8
{[%clk 0:00:44.6]} 17. Rad2 {[%clk 0:01:56.9]} 17... Rc8 {[%clk 0:00:34.9]} 18.
c4 {[%clk 0:01:47.8]} 18... Nxe3 {[%clk 0:00:34.5]} 19. fxe3 {[%clk 0:01:48.2]}
19... Bf2 {[%clk 0:00:34.7]} 20. f4 {[%clk 0:01:45]} 20... Nc6 {[%clk 0:00:16]}
21. b5 {[%clk 0:01:43.9]} 21... Ne7 {[%clk 0:00:11.5]} 22. Rd3 {[%clk
0:01:37.7]} 22... Nf5 {[%clk 0:00:10.7]} 23. Kd2 {[%clk 0:01:34.6]} 23... Rxc5
{[%clk 0:00:08]} 24. Bg4 {[%clk 0:01:32.7]} 24... Bh4 {[%clk 0:00:05.8]} 25.
Bxf5 {[%clk 0:01:32.1]} 25... exf5 {[%clk 0:00:06.4]} 26. Kc3 {[%clk 0:01:25.8]}
26... Rhc8 {[%clk 0:00:05.7]} 27. Nd2 {[%clk 0:01:22.8]} 27... Bf6+ {[%clk
0:00:04.8]} 28. Kb3 {[%clk 0:01:22.7]} 28... a4+ {[%clk 0:00:04.4]} 29. Kxa4
{[%clk 0:01:21.8]} 29... b6 {[%clk 0:00:04.9]} 30. Rd7 {[%clk 0:01:14.6]} 30...
R8c7 {[%clk 0:00:04.2]} 31. Rxc7 {[%clk 0:01:13.2]} 31... Kxc7 {[%clk
0:00:05.1]} 32. Kb4 {[%clk 0:01:11.9]} 32... Be7 {[%clk 0:00:04.5]} 33. Kb3
{[%clk 0:01:08.4]} 33... Kb7 {[%clk 0:00:04.4]} 34. Nf3 {[%clk 0:01:07.8]} 34...
Rc7 {[%clk 0:00:04.2]} 35. Ne5 {[%clk 0:01:05]} 35... Bc5 {[%clk 0:00:04.1]} 36.
Rd3 {[%clk 0:01:02.4]} 36... Re7 {[%clk 0:00:04.1]} 37. a4 {[%clk 0:01:00.4]}
37... f6 {[%clk 0:00:04.5]} 38. Rd7+ {[%clk 0:00:40.8]} 38... Rxd7 {[%clk
0:00:04.3]} 39. Nxd7 {[%clk 0:00:41.6]} 39... Bxe3 {[%clk 0:00:04.5]} 40. a5
{[%clk 0:00:41.7]} 40... bxa5 {[%clk 0:00:03.2]} 41. c5 {[%clk 0:00:40.2]} 41...
Bxf4 {[%clk 0:00:03.3]} 42. Kc4 {[%clk 0:00:29.4]} 42... Bxh2 {[%clk 0:00:02.2]}
43. c6+ {[%clk 0:00:25.7]} 43... Kc7 {[%clk 0:00:01.2]} 44. Kd5 {[%clk
0:00:26.1]} 44... Bg1 {[%clk 0:00:01.1]} 45. Nf8 {[%clk 0:00:25.2]} 45... h5
{[%clk 0:00:01.3]} 46. Ne6+ {[%clk 0:00:25.2]} 1-0